[Event "*** Titled Tuesday Blitz"]
[Site "Chess.com"]
[Date "2019.11.05"]
[Round "5"]
[White "GHANDEEVAM2003"]
[Black "anesar92"]
[Result "1-0"]
[WhiteElo "2998"]
[BlackElo "2685"]
[TimeControl "180+2"]
[EndTime "14:06:04 PST"]
[Termination "GHANDEEVAM2003 won by resignation"]

1. c4 {[%clk 0:03:01.9]} 1... e5 {[%clk 0:02:59.8]} 2. Nc3 {[%clk 0:03:02.2]}
2... Nc6 {[%clk 0:03:00.9]} 3. Nf3 {[%clk 0:03:03.1]} 3... f5 {[%clk 0:02:55.7]}
4. d4 {[%clk 0:03:03.4]} 4... e4 {[%clk 0:02:56.7]} 5. d5 {[%clk 0:03:04.4]}
5... exf3 {[%clk 0:02:53.3]} 6. dxc6 {[%clk 0:03:05.5]} 6... fxg2 {[%clk
0:02:53]} 7. cxd7+ {[%clk 0:03:06]} 7... Qxd7 {[%clk 0:02:54.9]} 8. Qxd7+ {[%clk
0:03:02.5]} 8... Bxd7 {[%clk 0:02:56.8]} 9. Bxg2 {[%clk 0:03:04]} 9... O-O-O
{[%clk 0:02:58.7]} 10. Be3 {[%clk 0:03:02.7]} 10... a6 {[%clk 0:02:55.6]} 11.
O-O-O {[%clk 0:03:02.8]} 11... Nf6 {[%clk 0:02:56.4]} 12. Rhg1 {[%clk
0:02:53.7]} 12... Be7 {[%clk 0:02:54.8]} 13. Bd4 {[%clk 0:02:41.6]} 13... Rhe8
{[%clk 0:02:52.4]} 14. f4 {[%clk 0:02:20.8]} 14... g6 {[%clk 0:02:52.3]} 15. Bf3
{[%clk 0:02:17.9]} 15... Be6 {[%clk 0:02:42.1]} 16. b3 {[%clk 0:02:06]} 16...
Nd7 {[%clk 0:02:35.5]} 17. Kc2 {[%clk 0:01:58.3]} 17... Bf6 {[%clk 0:02:32.2]}
18. Bf2 {[%clk 0:01:54]} 18... Nb8 {[%clk 0:02:26.1]} 19. Nd5 {[%clk 0:01:50]}
19... Bxd5 {[%clk 0:02:10.8]} 20. cxd5 {[%clk 0:01:51.9]} 20... c6 {[%clk
0:02:08.9]} 21. e4 {[%clk 0:01:43.4]} 21... fxe4 {[%clk 0:02:04.1]} 22. Bg4+
{[%clk 0:01:44.5]} 22... Kc7 {[%clk 0:01:55.7]} 23. d6+ {[%clk 0:01:45.8]} 23...
Rxd6 {[%clk 0:01:56.8]} 24. Bb6+ {[%clk 0:01:47.7]} 24... Kxb6 {[%clk
0:01:57.4]} 25. Rxd6 {[%clk 0:01:49.6]} 25... Bh4 {[%clk 0:01:57.2]} 26. Rgd1
{[%clk 0:01:32.1]} 26... e3 {[%clk 0:01:53.8]} 27. Kd3 {[%clk 0:01:32.6]} 27...
h5 {[%clk 0:01:43.4]} 28. Bf3 {[%clk 0:01:29.9]} 28... Kc7 {[%clk 0:01:38.2]}
29. Rxg6 {[%clk 0:01:29]} 29... Nd7 {[%clk 0:01:39.3]} 30. Rg7 {[%clk
0:01:20.9]} 30... Kc8 {[%clk 0:01:37]} 31. Ke2 {[%clk 0:01:21.4]} 31... Nc5
{[%clk 0:01:36.7]} 32. Bxh5 {[%clk 0:01:18.8]} 32... Ne4 {[%clk 0:01:37.2]} 33.
Bxe8 {[%clk 0:01:18.7]} 33... Nc3+ {[%clk 0:01:33.2]} 34. Kxe3 {[%clk
0:01:19.6]} 34... Nxd1+ {[%clk 0:01:34.3]} 35. Kf3 {[%clk 0:01:20.9]} 35... Nc3
{[%clk 0:01:27.8]} 36. a4 {[%clk 0:01:22]} 36... Nb1 {[%clk 0:01:25.6]} 37. Bd7+
{[%clk 0:01:19.8]} 37... Kb8 {[%clk 0:01:24.9]} 38. Be6 {[%clk 0:01:20.9]} 38...
Nd2+ {[%clk 0:01:25.9]} 39. Kg4 {[%clk 0:01:22.3]} 39... Bd8 {[%clk 0:01:24.7]}
40. Rd7 {[%clk 0:01:19.3]} 40... Bc7 {[%clk 0:01:24.1]} 41. Rxd2 {[%clk
0:01:19.3]} 1-0

[Event "*** Titled Tuesday Blitz"]
[Site "Chess.com"]
[Date "2019.11.05"]
[Round "5"]
[White "GelmanAlexander"]
[Black "StephenDedalus83"]
[Result "1-0"]
[WhiteElo "2512"]
[BlackElo "2796"]
[TimeControl "180+2"]
[EndTime "14:06:05 PST"]
[Termination "GelmanAlexander won by resignation"]

1. e4 {[%clk 0:03:01.9]} 1... c5 {[%clk 0:02:59.3]} 2. b4 {[%clk 0:03:02.7]}
2... cxb4 {[%clk 0:02:59.1]} 3. a3 {[%clk 0:03:04]} 3... bxa3 {[%clk 0:02:57.9]}
4. d4 {[%clk 0:03:04.7]} 4... e6 {[%clk 0:02:57.7]} 5. Bd3 {[%clk 0:03:00.5]}
5... d5 {[%clk 0:02:58]} 6. e5 {[%clk 0:03:01.5]} 6... Nc6 {[%clk 0:02:57.8]} 7.
c3 {[%clk 0:03:02.5]} 7... Bd7 {[%clk 0:02:57.5]} 8. Nxa3 {[%clk 0:02:55.7]}
8... a6 {[%clk 0:02:57.9]} 9. Nf3 {[%clk 0:02:55.2]} 9... Nge7 {[%clk
0:02:46.5]} 10. Ng5 {[%clk 0:02:39.5]} 10... h6 {[%clk 0:02:46.9]} 11. Nh7
{[%clk 0:02:39.4]} 11... Nc8 {[%clk 0:02:30.6]} 12. Nxf8 {[%clk 0:02:39.6]}
12... Kxf8 {[%clk 0:02:31.1]} 13. O-O {[%clk 0:02:16.2]} 13... g6 {[%clk
0:02:23.6]} 14. Nc2 {[%clk 0:02:06.5]} 14... Kg7 {[%clk 0:02:21.2]} 15. Ne3
{[%clk 0:02:07.4]} 15... N6e7 {[%clk 0:02:12.2]} 16. Ng4 {[%clk 0:02:07.4]}
16... Ng8 {[%clk 0:02:12.2]} 17. g3 {[%clk 0:01:13.5]} 17... Na7 {[%clk
0:02:11.7]} 18. Re1 {[%clk 0:01:10.6]} 18... Bb5 {[%clk 0:02:12.4]} 19. Bb1
{[%clk 0:01:10.8]} 19... Nc8 {[%clk 0:02:11.6]} 20. h4 {[%clk 0:01:08.8]} 20...
Nb6 {[%clk 0:02:06.3]} 21. Qf3 {[%clk 0:01:07.5]} 21... Nc4 {[%clk 0:02:04.9]}
22. Ra2 {[%clk 0:01:07]} 22... Qe7 {[%clk 0:02:00.6]} 23. Kg2 {[%clk 0:01:02.4]}
23... Rc8 {[%clk 0:01:58]} 24. Bf4 {[%clk 0:01:02.7]} 24... Bd7 {[%clk
0:01:46.8]} 25. Bc1 {[%clk 0:00:58.7]} 25... Qf8 {[%clk 0:01:44.8]} 26. Nf6
{[%clk 0:00:58]} 26... Nxf6 {[%clk 0:01:45]} 27. exf6+ {[%clk 0:00:59.5]} 27...
Kg8 {[%clk 0:01:44]} 28. h5 {[%clk 0:00:57.1]} 28... g5 {[%clk 0:01:44.4]} 29.
Qg4 {[%clk 0:00:51]} 29... e5 {[%clk 0:01:22.2]} 30. Qxd7 {[%clk 0:00:50.5]}
30... e4 {[%clk 0:01:17.4]} 31. Qxd5 {[%clk 0:00:49.7]} 31... Nd6 {[%clk
0:01:16.9]} 32. Ba3 {[%clk 0:00:49.7]} 32... Rd8 {[%clk 0:01:17.3]} 33. Qe5
{[%clk 0:00:39.3]} 33... Qe8 {[%clk 0:01:15.3]} 34. Bxd6 {[%clk 0:00:39.3]}
34... Qxe5 {[%clk 0:01:15.1]} 35. Bxe5 {[%clk 0:00:40.3]} 1-0

[Event "*** Titled Tuesday Blitz"]
[Site "Chess.com"]
[Date "2019.11.05"]
[Round "5"]
[White "kinga2008"]
[Black "joshdaruca"]
[Result "0-1"]
[WhiteElo "1952"]
[BlackElo "2693"]
[TimeControl "180+2"]
[EndTime "14:06:22 PST"]
[Termination "joshdaruca won on time"]

1. e4 {[%clk 0:02:56.6]} 1... c5 {[%clk 0:02:59.2]} 2. a3 {[%clk 0:02:56.8]}
2... b6 {[%clk 0:02:54.8]} 3. b4 {[%clk 0:02:56.7]} 3... Bb7 {[%clk 0:02:56.3]}
4. bxc5 {[%clk 0:02:57.2]} 4... bxc5 {[%clk 0:02:58.2]} 5. d3 {[%clk 0:02:56.4]}
5... Nc6 {[%clk 0:02:56.5]} 6. Nc3 {[%clk 0:02:56.9]} 6... Nd4 {[%clk
0:02:57.2]} 7. Be3 {[%clk 0:02:50.8]} 7... g6 {[%clk 0:02:57.1]} 8. Nf3 {[%clk
0:02:51.8]} 8... Bg7 {[%clk 0:02:58.3]} 9. Rb1 {[%clk 0:02:50.4]} 9... Bc6
{[%clk 0:02:58.6]} 10. Bxd4 {[%clk 0:02:21.2]} 10... cxd4 {[%clk 0:02:57.3]} 11.
Ne2 {[%clk 0:02:19.3]} 11... e5 {[%clk 0:02:57.4]} 12. Qd2 {[%clk 0:02:19.6]}
12... Ne7 {[%clk 0:02:57.7]} 13. Qb4 {[%clk 0:02:15.6]} 13... O-O {[%clk
0:02:54.9]} 14. g3 {[%clk 0:02:03.3]} 14... Rb8 {[%clk 0:02:50]} 15. Qxb8 {[%clk
0:02:03.5]} 15... Qxb8 {[%clk 0:02:51.9]} 16. Rxb8 {[%clk 0:02:03.2]} 16... Rxb8
{[%clk 0:02:53.8]} 17. Nd2 {[%clk 0:01:43]} 17... Rb2 {[%clk 0:02:47.8]} 18. Kd1
{[%clk 0:01:34.8]} 18... Ra2 {[%clk 0:02:45]} 19. Nc1 {[%clk 0:01:34.7]} 19...
Rxa3 {[%clk 0:02:44.3]} 20. Be2 {[%clk 0:01:34.2]} 20... a5 {[%clk 0:02:41.6]}
21. Rf1 {[%clk 0:01:31.5]} 21... a4 {[%clk 0:02:41.7]} 22. f4 {[%clk 0:01:29.3]}
22... Ra1 {[%clk 0:02:38.2]} 23. Nc4 {[%clk 0:01:17.3]} 23... exf4 {[%clk
0:02:36.9]} 24. gxf4 {[%clk 0:01:17.1]} 24... f5 {[%clk 0:02:37.8]} 25. exf5
{[%clk 0:00:53.5]} 25... Nxf5 {[%clk 0:02:35.2]} 26. Kd2 {[%clk 0:00:42.1]}
26... Bf8 {[%clk 0:02:33.7]} 27. Bg4 {[%clk 0:00:34.6]} 27... Bb4+ {[%clk
0:02:34.6]} 28. Ke2 {[%clk 0:00:33.9]} 28... Bd5 {[%clk 0:02:08.1]} 29. Nb6
{[%clk 0:00:18.4]} 29... Be6 {[%clk 0:01:58.1]} 30. Bxf5 {[%clk 0:00:15.1]}
30... gxf5 {[%clk 0:01:58.4]} 31. Nc8 {[%clk 0:00:03.3]} 31... a3 {[%clk
0:01:56]} 32. Na7 {[%clk 0:00:02.5]} 32... Bc3 {[%clk 0:01:53.8]} 33. Nb5 {[%clk
0:00:03]} 33... Bb2 {[%clk 0:01:54.2]} 34. Kd2 {[%clk 0:00:02.6]} 34... a2
{[%clk 0:01:52.2]} 35. Rg1+ {[%clk 0:00:02.2]} 35... Kf8 {[%clk 0:01:52.7]} 36.
Re1 {[%clk 0:00:02]} 36... Bxc1+ {[%clk 0:01:52.5]} 0-1

[Event "*** Titled Tuesday Blitz"]
[Site "Chess.com"]
[Date "2019.11.05"]
[Round "5"]
[White "ehrenfeld"]
[Black "Darhild"]
[Result "1-0"]
[WhiteElo "2533"]
[BlackElo "2687"]
[TimeControl "180+2"]
[EndTime "14:06:23 PST"]
[Termination "ehrenfeld won by resignation"]

1. e4 {[%clk 0:03:01.9]} 1... c5 {[%clk 0:03:00.7]} 2. Nf3 {[%clk 0:03:01.7]}
2... d6 {[%clk 0:03:02.1]} 3. Bc4 {[%clk 0:03:02.2]} 3... Nc6 {[%clk 0:03:00.5]}
4. O-O {[%clk 0:02:59.9]} 4... g6 {[%clk 0:02:55.9]} 5. h3 {[%clk 0:02:54.9]}
5... Bg7 {[%clk 0:02:56]} 6. Nc3 {[%clk 0:02:53.7]} 6... e6 {[%clk 0:02:42.6]}
7. d4 {[%clk 0:02:44.9]} 7... Nxd4 {[%clk 0:02:28]} 8. Nxd4 {[%clk 0:02:44.4]}
8... cxd4 {[%clk 0:02:29.5]} 9. Nb5 {[%clk 0:02:40.8]} 9... Ne7 {[%clk
0:02:07.2]} 10. Nxd4 {[%clk 0:02:40.2]} 10... a6 {[%clk 0:02:00.5]} 11. Bb3
{[%clk 0:02:39.7]} 11... O-O {[%clk 0:02:01.1]} 12. Bg5 {[%clk 0:02:39]} 12...
h6 {[%clk 0:02:00.2]} 13. Bh4 {[%clk 0:02:38.1]} 13... g5 {[%clk 0:02:01.6]} 14.
Bg3 {[%clk 0:02:38.7]} 14... Ng6 {[%clk 0:02:03.1]} 15. Qd2 {[%clk 0:02:35.9]}
15... Be5 {[%clk 0:01:47.6]} 16. Rad1 {[%clk 0:02:32.3]} 16... Qf6 {[%clk
0:01:40.9]} 17. Ne2 {[%clk 0:02:28.9]} 17... Bd7 {[%clk 0:01:05.7]} 18. f4
{[%clk 0:02:24.1]} 18... gxf4 {[%clk 0:01:04.5]} 19. Nxf4 {[%clk 0:02:25.1]}
19... Qg5 {[%clk 0:00:53.8]} 20. Nxg6 {[%clk 0:01:25.8]} 20... Bxg3 {[%clk
0:00:26.9]} 21. Nxf8 {[%clk 0:01:23.8]} 21... Rxf8 {[%clk 0:00:18.6]} 22. Rf3
{[%clk 0:01:21.6]} 22... Be5 {[%clk 0:00:17.7]} 23. Rd3 {[%clk 0:01:12.5]} 23...
Qg6 {[%clk 0:00:16.2]} 24. Rxd6 {[%clk 0:01:00]} 24... Bxd6 {[%clk 0:00:13.7]}
25. Qxd6 {[%clk 0:01:00.5]} 25... Bc6 {[%clk 0:00:15.4]} 26. Rd3 {[%clk
0:00:59.5]} 26... e5 {[%clk 0:00:05.9]} 27. Qxg6+ {[%clk 0:00:57.9]} 1-0

[Event "*** Titled Tuesday Blitz"]
[Site "Chess.com"]
[Date "2019.11.05"]
[Round "5"]
[White "Gubajdullin"]
[Black "BIG_Pirate"]
[Result "0-1"]
[WhiteElo "2584"]
[BlackElo "2438"]
[TimeControl "180+2"]
[EndTime "14:06:30 PST"]
[Termination "BIG_Pirate won on time"]

1. d4 {[%clk 0:03:01.9]} 1... d5 {[%clk 0:03:01]} 2. Bf4 {[%clk 0:03:02.3]} 2...
Nf6 {[%clk 0:03:01.6]} 3. e3 {[%clk 0:03:00.6]} 3... c5 {[%clk 0:03:02.4]} 4. c3
{[%clk 0:03:01.1]} 4... Qb6 {[%clk 0:03:02.6]} 5. Qb3 {[%clk 0:00:05.3]} 5...
Nc6 {[%clk 0:03:02.6]} 6. Qxb6 {[%clk 0:00:04.4]} 6... axb6 {[%clk 0:03:03.1]}
7. Nf3 {[%clk 0:00:05]} 7... Bf5 {[%clk 0:03:02.7]} 8. a3 {[%clk 0:00:03.9]}
8... h6 {[%clk 0:02:55.1]} 9. Be2 {[%clk 0:00:05.8]} 9... e6 {[%clk 0:02:56.1]}
10. O-O {[%clk 0:00:06]} 10... c4 {[%clk 0:02:57.3]} 11. Nbd2 {[%clk 0:00:07.3]}
11... b5 {[%clk 0:02:58.2]} 12. Ne5 {[%clk 0:00:09.2]} 12... Be7 {[%clk
0:02:55.3]} 13. Nxc6 {[%clk 0:00:07.9]} 13... bxc6 {[%clk 0:02:55.6]} 14. Nf3
{[%clk 0:00:07.5]} 14... O-O {[%clk 0:02:43.2]} 15. Ne5 {[%clk 0:00:07.3]} 15...
Rfc8 {[%clk 0:02:43.6]} 16. h3 {[%clk 0:00:09.2]} 16... Ra7 {[%clk 0:02:41.8]}
17. Rfe1 {[%clk 0:00:08.5]} 17... Ne4 {[%clk 0:02:40.2]} 18. Bh2 {[%clk
0:00:09.5]} 18... Nd2 {[%clk 0:02:39.5]} 19. f3 {[%clk 0:00:10]} 19... Nb3
{[%clk 0:02:36]} 20. Rad1 {[%clk 0:00:10.2]} 20... Bc2 {[%clk 0:02:36.6]} 21. e4
{[%clk 0:00:09.3]} 21... Bxd1 {[%clk 0:02:37.1]} 22. Bxd1 {[%clk 0:00:09.4]}
22... Bh4 {[%clk 0:02:14.9]} 23. Re2 {[%clk 0:00:08.3]} 23... Nc1 {[%clk
0:02:11]} 24. Rc2 {[%clk 0:00:06]} 24... Nb3 {[%clk 0:02:07.2]} 25. g3 {[%clk
0:00:05.6]} 25... Be7 {[%clk 0:02:02.2]} 26. Ng4 {[%clk 0:00:05.1]} 26... c5
{[%clk 0:01:54]} 27. dxc5 {[%clk 0:00:04.9]} 27... Bxc5+ {[%clk 0:01:53.4]} 28.
Kg2 {[%clk 0:00:05.1]} 28... d4 {[%clk 0:01:54.4]} 29. cxd4 {[%clk 0:00:04.9]}
29... Nxd4 {[%clk 0:01:51.6]} 30. Rd2 {[%clk 0:00:05]} 30... Nc6 {[%clk
0:01:44.4]} 31. f4 {[%clk 0:00:04]} 31... c3 {[%clk 0:01:41.3]} 32. bxc3 {[%clk
0:00:04.2]} 32... Rxa3 {[%clk 0:01:42.2]} 33. Rc2 {[%clk 0:00:03.2]} 33... Rca8
{[%clk 0:01:34.2]} 0-1

[Event "*** Titled Tuesday Blitz"]
[Site "Chess.com"]
[Date "2019.11.05"]
[Round "5"]
[White "Marcus_Harvey"]
[Black "ferdipy"]
[Result "1-0"]
[WhiteElo "2631"]
[BlackElo "2216"]
[TimeControl "180+2"]
[EndTime "14:06:30 PST"]
[Termination "Marcus_Harvey won on time"]

1. Nf3 {[%clk 0:03:01.9]} 1... Nf6 {[%clk 0:03:00]} 2. b3 {[%clk 0:03:03.2]}
2... e6 {[%clk 0:02:58.2]} 3. Bb2 {[%clk 0:03:05.1]} 3... Be7 {[%clk 0:02:59.1]}
4. g3 {[%clk 0:03:06.1]} 4... O-O {[%clk 0:03:00.3]} 5. Bg2 {[%clk 0:03:08]}
5... c5 {[%clk 0:03:01.6]} 6. O-O {[%clk 0:03:09.7]} 6... Nc6 {[%clk 0:03:00.8]}
7. c4 {[%clk 0:03:10.9]} 7... b6 {[%clk 0:03:01.7]} 8. d4 {[%clk 0:03:11.9]}
8... cxd4 {[%clk 0:02:59.6]} 9. Nxd4 {[%clk 0:03:13.8]} 9... Bb7 {[%clk
0:03:00.8]} 10. Nb5 {[%clk 0:03:15]} 10... d6 {[%clk 0:02:57.7]} 11. Ba3 {[%clk
0:03:16.1]} 11... Ne8 {[%clk 0:02:56.6]} 12. N1c3 {[%clk 0:03:14.1]} 12... a6
{[%clk 0:02:56.4]} 13. Nd4 {[%clk 0:03:15.3]} 13... Rc8 {[%clk 0:02:48.9]} 14.
Rc1 {[%clk 0:03:03.5]} 14... Qc7 {[%clk 0:02:46.2]} 15. Nd5 {[%clk 0:02:56.6]}
15... Qd8 {[%clk 0:02:32.5]} 16. Nxe7+ {[%clk 0:02:51.2]} 16... Qxe7 {[%clk
0:02:34.4]} 17. Qd2 {[%clk 0:02:48.5]} 17... Ne5 {[%clk 0:02:03.4]} 18. Rfd1
{[%clk 0:02:43.1]} 18... Bxg2 {[%clk 0:02:00.2]} 19. Kxg2 {[%clk 0:02:45]} 19...
Qb7+ {[%clk 0:01:55.5]} 20. f3 {[%clk 0:02:44.8]} 20... Rd8 {[%clk 0:01:41.5]}
21. Qf4 {[%clk 0:02:39.8]} 21... Ng6 {[%clk 0:01:24.1]} 22. Qe3 {[%clk
0:02:36.2]} 22... Nf6 {[%clk 0:01:18.9]} 23. Nc2 {[%clk 0:02:22]} 23... Qc6
{[%clk 0:01:19.1]} 24. Nb4 {[%clk 0:02:21.7]} 24... Qb7 {[%clk 0:01:18.8]} 25.
Nd3 {[%clk 0:02:22.8]} 25... Rfe8 {[%clk 0:01:16.2]} 26. Bb2 {[%clk 0:02:19.8]}
26... d5 {[%clk 0:01:11.8]} 27. Bxf6 {[%clk 0:02:19.7]} 27... gxf6 {[%clk
0:01:12.3]} 28. Nf4 {[%clk 0:02:12.9]} 28... Nxf4+ {[%clk 0:00:58.3]} 29. Qxf4
{[%clk 0:02:13.3]} 29... Qe7 {[%clk 0:00:41.2]} 30. Rd4 {[%clk 0:01:50]} 30...
f5 {[%clk 0:00:33.5]} 31. Qh6 {[%clk 0:01:43.9]} 31... dxc4 {[%clk 0:00:29.8]}
32. Rh4 {[%clk 0:01:36.5]} 32... f6 {[%clk 0:00:30.6]} 33. Rcxc4 {[%clk
0:01:37]} 33... Rd7 {[%clk 0:00:24.1]} 34. Rc6 {[%clk 0:01:34.6]} 34... Qb4
{[%clk 0:00:19.8]} 35. Rxb4 {[%clk 0:01:32.6]} 1-0

[Event "*** Titled Tuesday Blitz"]
[Site "Chess.com"]
[Date "2019.11.05"]
[Round "5"]
[White "Alopekos"]
[Black "swisspower96"]
[Result "0-1"]
[WhiteElo "2478"]
[BlackElo "2708"]
[TimeControl "180+2"]
[EndTime "14:06:37 PST"]
[Termination "swisspower96 won by resignation"]

1. e4 {[%clk 0:03:01.9]} 1... e6 {[%clk 0:03:00.8]} 2. d4 {[%clk 0:02:59.9]}
2... d5 {[%clk 0:03:02.7]} 3. Nc3 {[%clk 0:02:59]} 3... Bb4 {[%clk 0:03:02.6]}
4. e5 {[%clk 0:02:58.4]} 4... c5 {[%clk 0:03:03]} 5. a3 {[%clk 0:03:00]} 5...
Bxc3+ {[%clk 0:03:03.4]} 6. bxc3 {[%clk 0:03:01.9]} 6... Ne7 {[%clk 0:03:04.9]}
7. Qg4 {[%clk 0:03:02.9]} 7... cxd4 {[%clk 0:03:03.8]} 8. Qxg7 {[%clk
0:03:03.9]} 8... Rg8 {[%clk 0:03:05.4]} 9. Qxh7 {[%clk 0:03:05.6]} 9... Qc7
{[%clk 0:03:07]} 10. Ne2 {[%clk 0:03:07.2]} 10... Nbc6 {[%clk 0:03:04]} 11. f4
{[%clk 0:03:08.2]} 11... dxc3 {[%clk 0:03:05.3]} 12. Rg1 {[%clk 0:03:08.6]}
12... b6 {[%clk 0:02:56.4]} 13. g4 {[%clk 0:03:08.6]} 13... Bb7 {[%clk
0:02:56.6]} 14. Rg3 {[%clk 0:03:08]} 14... d4 {[%clk 0:02:56.1]} 15. h4 {[%clk
0:03:04.7]} 15... O-O-O {[%clk 0:02:36.1]} 16. Qxf7 {[%clk 0:02:50.5]} 16... Kb8
{[%clk 0:02:37.3]} 17. Bh3 {[%clk 0:01:53.4]} 17... Bc8 {[%clk 0:02:25.7]} 18.
h5 {[%clk 0:01:54.3]} 18... Rh8 {[%clk 0:02:15.1]} 19. g5 {[%clk 0:00:47.6]}
19... Rdf8 {[%clk 0:02:12.9]} 20. Qg7 {[%clk 0:00:48.5]} 20... Rfg8 {[%clk
0:02:14.2]} 21. Qf7 {[%clk 0:00:49.4]} 21... Nd8 {[%clk 0:01:50.2]} 22. Qf6
{[%clk 0:00:47.6]} 22... Rf8 {[%clk 0:01:47.8]} 23. Qg7 {[%clk 0:00:48.3]} 23...
Rfg8 {[%clk 0:01:46.1]} 24. Qf6 {[%clk 0:00:49.3]} 24... Nd5 {[%clk 0:01:42]}
25. Qxh8 {[%clk 0:00:43.3]} 25... Rxh8 {[%clk 0:01:42.1]} 26. h6 {[%clk
0:00:40.6]} 26... Nc6 {[%clk 0:01:38.9]} 27. Bg2 {[%clk 0:00:39.8]} 27... Nde7
{[%clk 0:01:38.6]} 28. Be4 {[%clk 0:00:35.9]} 28... Nf5 {[%clk 0:01:37.3]} 29.
Rh3 {[%clk 0:00:37.1]} 29... Nce7 {[%clk 0:01:34.6]} 30. a4 {[%clk 0:00:36.3]}
30... Bb7 {[%clk 0:01:35.5]} 31. Bd3 {[%clk 0:00:28]} 31... Qc6 {[%clk
0:01:30.3]} 32. Rh2 {[%clk 0:00:29.1]} 32... Qf3 {[%clk 0:01:16.4]} 33. Ba3
{[%clk 0:00:12.6]} 33... Ne3 {[%clk 0:01:16.6]} 34. Rf2 {[%clk 0:00:13.1]} 34...
Qh1+ {[%clk 0:01:16.6]} 0-1

[Event "*** Titled Tuesday Blitz"]
[Site "Chess.com"]
[Date "2019.11.05"]
[Round "5"]
[White "Ginger_GM"]
[Black "ExploringChess"]
[Result "0-1"]
[WhiteElo "2484"]
[BlackElo "2719"]
[TimeControl "180+2"]
[EndTime "14:06:48 PST"]
[Termination "ExploringChess won by resignation"]

1. e4 {[%clk 0:03:00.3]} 1... e6 {[%clk 0:02:54.7]} 2. Nf3 {[%clk 0:02:59.5]}
2... d5 {[%clk 0:02:54.2]} 3. e5 {[%clk 0:03:00.7]} 3... c5 {[%clk 0:02:54]} 4.
b4 {[%clk 0:03:01.2]} 4... cxb4 {[%clk 0:02:53.6]} 5. d4 {[%clk 0:03:00.9]} 5...
Nc6 {[%clk 0:02:51.5]} 6. a3 {[%clk 0:03:00.4]} 6... Bd7 {[%clk 0:02:49.4]} 7.
axb4 {[%clk 0:03:00.5]} 7... Bxb4+ {[%clk 0:02:44.7]} 8. c3 {[%clk 0:03:01.6]}
8... Be7 {[%clk 0:02:46.6]} 9. Bd3 {[%clk 0:03:02.3]} 9... f6 {[%clk 0:02:45.9]}
10. O-O {[%clk 0:02:59.9]} 10... Nh6 {[%clk 0:02:45.7]} 11. Bxh6 {[%clk
0:02:38]} 11... gxh6 {[%clk 0:02:47.6]} 12. Nh4 {[%clk 0:02:37.1]} 12... Bc8
{[%clk 0:02:31.4]} 13. Qh5+ {[%clk 0:02:36.3]} 13... Kd7 {[%clk 0:02:30.4]} 14.
c4 {[%clk 0:02:31.2]} 14... Qe8 {[%clk 0:02:28.3]} 15. Qxh6 {[%clk 0:02:27.3]}
15... Qf8 {[%clk 0:02:29.3]} 16. Qd2 {[%clk 0:02:19.4]} 16... fxe5 {[%clk
0:02:25]} 17. cxd5 {[%clk 0:02:20.3]} 17... exd5 {[%clk 0:02:24.4]} 18. Nf5
{[%clk 0:02:06.1]} 18... e4 {[%clk 0:02:21.4]} 19. Nxe7 {[%clk 0:02:06.9]} 19...
Kxe7 {[%clk 0:02:21.5]} 20. Nc3 {[%clk 0:02:04.3]} 20... exd3 {[%clk 0:02:16.8]}
21. Nxd5+ {[%clk 0:02:04.8]} 21... Kd8 {[%clk 0:02:16]} 22. Qg5+ {[%clk
0:02:04.9]} 22... Ne7 {[%clk 0:02:11.9]} 23. Rfe1 {[%clk 0:02:03.4]} 23... Rg8
{[%clk 0:02:08]} 24. Qe5 {[%clk 0:01:52]} 24... Rxg2+ {[%clk 0:01:59.9]} 25.
Kxg2 {[%clk 0:01:50.9]} 25... Qg8+ {[%clk 0:02:00]} 26. Kf3 {[%clk 0:01:03.9]}
26... Qxd5+ {[%clk 0:01:59.5]} 27. Qxd5+ {[%clk 0:01:04.2]} 27... Nxd5 {[%clk
0:02:01.4]} 28. Rad1 {[%clk 0:01:03.2]} 28... Nb4 {[%clk 0:01:56.6]} 29. Rg1
{[%clk 0:01:02.7]} 29... Bd7 {[%clk 0:01:49.8]} 30. Rg8+ {[%clk 0:01:02]} 30...
Be8 {[%clk 0:01:50.5]} 31. Rdg1 {[%clk 0:00:55.7]} 31... Rc8 {[%clk 0:01:45.5]}
32. Ke3 {[%clk 0:00:51.3]} 32... Rc2 {[%clk 0:01:42.1]} 33. d5 {[%clk
0:00:44.5]} 33... Re2+ {[%clk 0:01:41.2]} 34. Kd4 {[%clk 0:00:44.7]} 34... d2
{[%clk 0:01:41.1]} 35. Rd1 {[%clk 0:00:32.1]} 35... Kc7 {[%clk 0:01:41.4]} 36.
Kc3 {[%clk 0:00:25.9]} 36... Nxd5+ {[%clk 0:01:40.9]} 37. Kd3 {[%clk 0:00:27]}
37... Nf4+ {[%clk 0:01:41.3]} 38. Kc3 {[%clk 0:00:28.4]} 38... Nd5+ {[%clk
0:01:37.8]} 39. Kd3 {[%clk 0:00:29]} 39... Bb5+ {[%clk 0:01:37.6]} 40. Kd4
{[%clk 0:00:28.8]} 40... Ba4 {[%clk 0:01:38.7]} 41. Rg7+ {[%clk 0:00:26.3]}
41... Ne7 {[%clk 0:01:29.4]} 0-1